bitfinex/quotes_BTCUSD_20250614
["timestamp","ask_amount","ask_price","bid_price","bid_amount"]
[1749890714083,9.075e-05,105150.0,105140.0,1.65446911]
[1749890714313,9.075e-05,105150.0,105140.0,1.63676822]
[1749890714515,9.075e-05,105150.0,105140.0,1.64783128]
[1749890714939,9.075e-05,105150.0,105140.0,1.65446911]
[1749890716059,9.075e-05,105150.0,105140.0,1.64783128]
[1749890716280,9.075e-05,105150.0,105140.0,1.65446968]
[1749890716706,9.075e-05,105150.0,105140.0,1.65446963]
[1749890717183,9.075e-05,105150.0,105140.0,1.63676838]
[1749890717395,9.075e-05,105150.0,105140.0,1.65446973]
[1749890717607,9.075e-05,105150.0,105140.0,1.65446974]
[1749890717825,9.075e-05,105150.0,105140.0,1.63676839]
[1749890718037,9.075e-05,105150.0,105140.0,1.65446973]
[1749890718250,9.075e-05,105150.0,105140.0,1.64783173]
[1749890718436,9.075e-05,105150.0,105140.0,1.63676839]
[1749890718680,9.075e-05,105150.0,105140.0,1.65446974]
[1749890718895,9.075e-05,105150.0,105140.0,1.65446973]
[1749890719541,9.075e-05,105150.0,105140.0,1.64783181]
[1749890719732,9.075e-05,105150.0,105140.0,1.65446984]
[1749890720430,9.075e-05,105150.0,105140.0,1.64783181]
[1749890720641,9.075e-05,105150.0,105140.0,1.65446984]
[1749890721281,9.075e-05,105150.0,105140.0,1.64783181]
[1749890721499,9.075e-05,105150.0,105140.0,1.63013039]
[1749890721717,9.075e-05,105150.0,105140.0,1.64783181]
[1749890721929,9.075e-05,105150.0,105140.0,1.63676842]
[1749890722137,9.075e-05,105150.0,105140.0,1.64783181]
[1749890722353,9.075e-05,105150.0,105140.0,1.63676842]
[1749890722576,9.075e-05,105150.0,105140.0,1.64783181]
[1749890722815,9.075e-05,105150.0,105140.0,1.63013039]
[1749890723032,9.075e-05,105150.0,105140.0,1.65447032]
[1749890723252,9.075e-05,105150.0,105140.0,1.65447047]
[1749890723498,9.075e-05,105150.0,105140.0,1.65447008]
[1749890723712,9.075e-05,105150.0,105140.0,1.64794919]
[1749890723924,9.075e-05,105150.0,105140.0,1.65463121]
[1749890724149,9.075e-05,105150.0,105140.0,1.64794917]
[1749890724567,9.075e-05,105150.0,105140.0,1.63681244]
[1749890724804,9.075e-05,105150.0,105140.0,1.65463125]
[1749890725019,9.075e-05,105150.0,105140.0,1.65463187]
[1749890725420,9.075e-05,105150.0,105140.0,1.63681261]
[1749890725869,9.075e-05,105150.0,105140.0,1.64794965]
[1749890726094,9.075e-05,105150.0,105140.0,1.65463188]
[1749890726305,9.075e-05,105150.0,105140.0,1.63013039]
[1749890726513,9.075e-05,105150.0,105140.0,1.65463359]
[1749890726715,9.075e-05,105150.0,105140.0,1.65463399]
[1749890726928,9.075e-05,105150.0,105140.0,1.63681401]
[1749890727133,9.075e-05,105150.0,105140.0,1.65463477]
[1749890727652,9.075e-05,105150.0,105140.0,1.65463442]
[1749890727865,9.075e-05,105150.0,105140.0,1.65463474]
[1749890728075,9.075e-05,105150.0,105140.0,1.65463523]
[1749890728496,9.075e-05,105150.0,105140.0,1.65463579]
[1749890728697,9.075e-05,105150.0,105140.0,1.63681368]
[1749890728910,9.075e-05,105150.0,105140.0,1.65463579]
[1749890729117,9.075e-05,105150.0,105140.0,1.63681368]
[1749890729321,9.075e-05,105150.0,105140.0,1.65463579]
[1749890729532,9.075e-05,105150.0,105140.0,1.73075365]
[1749890730056,9.075e-05,105150.0,105140.0,1.72407036]
[1749890730264,9.075e-05,105150.0,105140.0,1.73075365]
[1749890730471,9.075e-05,105150.0,105140.0,1.71293154]
[1749890730682,9.075e-05,105150.0,105140.0,1.70624825]
[1749890730878,9.075e-05,105150.0,105140.0,1.71961483]
[1749890731120,9.075e-05,105150.0,105140.0,1.73743694]
[1749890731325,9.075e-05,105150.0,105140.0,1.73075365]
[1749890731528,9.075e-05,105150.0,105140.0,1.73743694]
[1749890731759,9.075e-05,105150.0,105140.0,1.71293154]
[1749890731967,0.43681114,105180.0,105170.0,0.21869244]
[1749890732174,0.43690188,105180.0,105170.0,0.39735769]
[1749890732406,0.43690188,105180.0,105170.0,0.37285244]
[1749890732611,0.43690188,105180.0,105170.0,0.39736008]
[1749890733045,0.43690188,105180.0,105170.0,0.37953683]
[1749890733272,0.43690188,105180.0,105170.0,0.39736208]
[1749890733489,0.45591625,105180.0,105170.0,0.39067761]
[1749890733706,0.46542358,105180.0,105170.0,0.39736221]
[1749890733925,0.46542358,105180.0,105170.0,0.39736224]
[1749890734141,0.46538358,105180.0,105170.0,0.3973633]
[1749890734355,0.42578358,105180.0,105170.0,0.3973633]
[1749890734564,0.46538358,105180.0,105170.0,0.39067902]
[1749890734768,0.46538358,105180.0,105170.0,0.39067858]
[1749890735001,0.50329676,105180.0,105170.0,0.39736339]
[1749890735436,0.50329676,105180.0,105170.0,0.37953719]
[1749890735673,0.50329676,105180.0,105170.0,0.39736319]
[1749890735881,0.50329676,105180.0,105170.0,0.37953719]
[1749890736096,0.50329676,105180.0,105170.0,0.39736334]
[1749890736348,0.45599676,105180.0,105170.0,0.39736354]
[1749890736572,0.49559676,105180.0,105170.0,0.37953732]
[1749890736818,0.49559676,105180.0,105170.0,0.37953738]
[1749890737036,0.49559676,105180.0,105170.0,0.3973639]
[1749890737245,0.48329676,105180.0,105170.0,0.37953738]
[1749890737459,0.48329676,105180.0,105170.0,0.37285244]
[1749890737664,0.48329676,105180.0,105170.0,0.39736389]
[1749890737874,0.48329676,105180.0,105170.0,0.3973639]
[1749890738096,0.48329676,105180.0,105170.0,0.37285244]
[1749890738300,0.49559676,105180.0,105170.0,0.39067896]
[1749890738507,0.49559676,105180.0,105170.0,0.39067895]
[1749890738717,0.49559676,105180.0,105170.0,0.39736389]
[1749890739211,0.48329676,105180.0,105170.0,0.39736389]
[1749890739421,0.49280418,105180.0,105170.0,0.39736389]
[1749890739631,0.49280418,105180.0,105170.0,0.39736404]
[1749890740073,0.48329676,105180.0,105170.0,0.39736404]
[1749890740285,0.48329676,105180.0,105170.0,0.3795374]
[1749890740710,0.48329676,105180.0,105170.0,0.37285244]
[1749890740911,0.48329676,105180.0,105170.0,0.37953741]
[1749890741356,0.49280418,105180.0,105170.0,0.39736399]
[1749890741572,0.49280418,105180.0,105170.0,0.37953741]
[1749890741788,0.49280418,105180.0,105170.0,0.39067903]
[1749890741994,0.49280418,105180.0,105170.0,0.37953741]
[1749890742207,0.49280418,105180.0,105170.0,0.37953824]
[1749890742434,0.49280418,105180.0,105170.0,0.39068125]
[1749890742689,0.49280418,105180.0,105170.0,0.39736717]
[1749890742896,0.49280418,105180.0,105170.0,0.37953791]
[1749890743132,0.49280418,105180.0,105170.0,0.39736583]
[1749890743345,0.49280418,105180.0,105170.0,0.37285244]
[1749890743553,0.49280418,105180.0,105170.0,0.39068069]
[1749890743769,0.49280418,105180.0,105170.0,0.39736629]
[1749890743978,0.49280418,105180.0,105170.0,0.37953802]
[1749890744189,0.49280418,105180.0,105170.0,0.39736624]
[1749890744399,0.49280418,105180.0,105170.0,0.39068067]
[1749890744621,0.50231169,105180.0,105170.0,0.39736625]
[1749890744829,0.50231169,105180.0,105170.0,0.39068067]
[1749890745039,0.50231169,105180.0,105170.0,0.39068066]
[1749890745258,0.50231169,105180.0,105170.0,0.37285244]
[1749890745469,0.50231169,105180.0,105170.0,0.37953802]
[1749890745696,0.50231169,105180.0,105170.0,0.39068067]
[1749890745913,0.50231169,105180.0,105170.0,0.39736627]
[1749890746120,0.49280418,105180.0,105170.0,0.37953803]
[1749890746333,0.49280418,105180.0,105170.0,0.3973663]
[1749890746598,0.50231169,105180.0,105170.0,0.37285244]
[1749890747012,0.50231169,105180.0,105170.0,0.39736625]
[1749890747216,0.50231169,105180.0,105170.0,0.37285244]
[1749890747423,0.50231169,105180.0,105170.0,0.37953803]
[1749890747635,0.50231169,105180.0,105170.0,0.39736627]
[1749890748042,0.50231169,105180.0,105170.0,0.37953803]
[1749890748252,0.50231169,105180.0,105170.0,0.37285244]
[1749890748463,0.50231169,105180.0,105170.0,0.37953783]
[1749890748664,0.06652535,105180.0,105170.0,0.43026572]
[1749890748873,0.62114961,105180.0,105170.0,0.42357964]
[1749890749079,0.62114961,105180.0,105170.0,0.41243758]
[1749890749494,0.62114961,105180.0,105170.0,0.4302648]
[1749890749699,0.06652526,105180.0,105170.0,0.41243769]
[1749890749914,0.62114961,105180.0,105170.0,0.43026509]
[1749890750152,0.62114961,105180.0,105170.0,0.43026511]
[1749890750360,0.62114961,105180.0,105170.0,0.43026507]
[1749890750591,0.61164228,105180.0,105170.0,0.43026509]
[1749890750804,0.62114951,105180.0,105170.0,0.43026509]
[1749890751289,0.06652516,105180.0,105170.0,0.43026581]
[1749890751509,0.62114951,105180.0,105170.0,0.43026583]
[1749890751772,0.06652516,105180.0,105170.0,0.43026581]
[1749890751985,0.61164192,105180.0,105170.0,0.43026581]
[1749890752202,0.62114906,105180.0,105170.0,0.41243788]
[1749890752407,0.62114906,105180.0,105170.0,0.42358022]
[1749890752622,0.62114906,105180.0,105170.0,0.43026565]
[1749890752836,0.62114906,105180.0,105170.0,0.42358023]
[1749890753049,0.62114906,105180.0,105170.0,0.43026663]
[1749890753264,0.62114906,105180.0,105170.0,0.41243813]
[1749890753482,0.05701757,105180.0,105170.0,0.41243814]
[1749890753701,0.05701748,105180.0,105170.0,0.43026668]
[1749890753911,0.61164183,105180.0,105170.0,0.43026668]
[1749890754125,0.61164183,105180.0,105170.0,0.43026666]
[1749890754336,0.05701748,105180.0,105170.0,0.43026664]
[1749890754544,0.62114879,105180.0,105170.0,0.43026664]
[1749890754931,0.62114879,105180.0,105170.0,0.41243812]
[1749890755134,0.62114879,105180.0,105170.0,0.43026661]
[1749890755346,0.62114879,105180.0,105170.0,0.41243813]
[1749890755551,0.62114879,105180.0,105170.0,0.42358094]
[1749890755756,0.62114879,105180.0,105170.0,0.43026661]
[1749890755967,0.61164183,105180.0,105170.0,0.4302666]
[1749890756183,0.61164183,105180.0,105170.0,0.40575244]
[1749890756395,0.61164183,105180.0,105170.0,0.41243811]
[1749890756396,0.06652444,105180.0,105170.0,0.41243811]
[1749890756597,0.06652444,105180.0,105170.0,0.42358091]
[1749890756815,0.06652444,105180.0,105170.0,0.41243811]
[1749890757047,0.06652444,105180.0,105170.0,0.42358183]
[1749890757458,0.06652444,105180.0,105170.0,0.43026785]
[1749890757639,0.06652444,105180.0,105170.0,0.40575244]
[1749890757795,0.05701748,105180.0,105170.0,0.42357584]
[1749890758007,0.05701748,105180.0,105170.0,0.43025959]
[1749890758208,0.05701748,105180.0,105170.0,0.43025958]
[1749890758412,0.04751061,105180.0,105170.0,0.43025958]
[1749890758617,0.05701748,105180.0,105170.0,0.4302596]
[1749890758821,0.04751061,105180.0,105170.0,0.4302596]
[1749890759035,0.05701748,105180.0,105170.0,0.42357478]
[1749890759229,9.074e-05,105180.0,105170.0,0.43025815]
[1749890759430,9.074e-05,105180.0,105170.0,1.17727361]
[1749890759866,9.074e-05,105180.0,105170.0,1.17727234]
[1749890760274,9.074e-05,105180.0,105170.0,0.61596576]
[1749890760598,9.074e-05,105180.0,105170.0,1.15944884]
[1749890760801,9.074e-05,105180.0,105170.0,1.15944863]
[1749890761007,9.074e-05,105180.0,105170.0,1.15276777]
[1749890761208,9.074e-05,105180.0,105170.0,1.18126426]
[1749890761499,9.074e-05,105180.0,105170.0,1.16344863]
[1749890761829,9.074e-05,105180.0,105170.0,1.18126426]
[1749890761926,9.074e-05,105180.0,105170.0,1.16344863]
[1749890762161,9.074e-05,105180.0,105170.0,1.18126426]
[1749890762636,0.03329055,105180.0,105170.0,1.18126426]
[1749890763081,0.03329055,105180.0,105170.0,0.37633069]
[1749890763307,0.81609332,105180.0,105170.0,0.42470437]
[1749890763543,0.62594311,105180.0,105170.0,0.40131325]
[1749890763774,0.62594311,105180.0,105170.0,0.40131772]
[1749890764007,0.62594311,105180.0,105170.0,0.38349567]
[1749890764232,0.62594311,105180.0,105170.0,0.40009556]
[1749890764713,0.62594311,105180.0,105170.0,0.41791747]
[1749890764902,0.61643578,105180.0,105170.0,0.41123426]
[1749890765175,0.62594311,105180.0,105170.0,0.41791747]
[1749890765404,0.62594311,105180.0,105170.0,0.39341235]
[1749890765618,0.62594311,105180.0,105170.0,0.41123425]
[1749890765864,0.60692855,105180.0,105170.0,0.39341235]
[1749890766083,0.62594293,105180.0,105170.0,0.41791746]
[1749890766340,0.63545016,105180.0,105170.0,0.40009556]
[1749890766577,0.63545089,105180.0,105170.0,0.26379754]
[1749890766801,0.62594347,105180.0,105170.0,0.40009559]
[1749890767017,0.62594347,105180.0,105170.0,0.40009565]
[1749890767242,0.07131912,105180.0,105170.0,0.41123445]
[1749890767473,0.62594347,105180.0,105170.0,0.40009563]
[1749890767689,0.62594347,105180.0,105170.0,0.42713443]
[1749890767909,0.62594347,105180.0,105170.0,0.41599563]
[1749890768141,0.62594347,105180.0,105170.0,0.40931235]
[1749890768382,0.62594347,105180.0,105170.0,0.42713446]
[1749890768612,0.62594347,105180.0,105170.0,0.41599563]
[1749890768800,0.62594347,105180.0,105170.0,0.40931235]
[1749890769062,0.62594347,105180.0,105170.0,0.43381778]
[1749890769273,0.21013749,105190.0,105170.0,0.41599564]
[1749890769518,0.57363873,105180.0,105170.0,0.41599565]
[1749890769746,0.57363873,105180.0,105170.0,0.43381777]
[1749890769967,0.60609023,105180.0,105170.0,0.43381911]
[1749890770211,0.60609023,105180.0,105170.0,0.43381955]
[1749890770432,0.60609023,105180.0,105170.0,0.41599565]
[1749890770646,0.62510442,105180.0,105170.0,0.43182048]
[1749890770871,0.62510442,105180.0,105170.0,0.43182143]
[1749890771097,0.62510442,105180.0,105170.0,0.43182158]
[1749890771318,0.62510442,105180.0,105170.0,0.44964678]
[1749890771548,0.62510442,105180.0,105170.0,0.44964731]
[1749890771787,0.62510442,105180.0,105170.0,0.43382187]
[1749890772025,0.62510442,105180.0,105170.0,0.45164792]
[1749890772246,0.62510442,105180.0,105170.0,0.45164808]
[1749890772477,0.62510442,105180.0,105170.0,0.45164807]
[1749890772698,0.62510442,105180.0,105170.0,0.42713714]
[1749890772931,0.62510442,105180.0,105170.0,0.44496733]
[1749890773154,0.615597,105180.0,105170.0,0.44496733]
[1749890773375,0.62510433,105180.0,105170.0,0.44496733]
[1749890773597,0.62510433,105180.0,105170.0,0.45165365]
[1749890773816,0.62510423,105180.0,105170.0,0.43382346]
[1749890774031,0.62510423,105180.0,105170.0,0.45165365]
[1749890774257,0.07047988,105180.0,105170.0,0.44496718]
[1749890774479,0.07047988,105180.0,105170.0,0.42713714]
[1749890774480,0.06097265,105180.0,105170.0,0.42713714]
[1749890774710,0.06097265,105180.0,105170.0,0.43382327]
[1749890774926,0.06097265,105180.0,105170.0,0.42713714]
[1749890775115,0.06097265,105180.0,105170.0,0.43382328]
[1749890775346,0.06097265,105180.0,105170.0,0.42713714]
[1749890775791,0.06097265,105180.0,105170.0,0.45165314]
[1749890776011,0.06097265,105180.0,105170.0,0.42713714]
[1749890776247,0.07047998,105180.0,105170.0,0.42713714]
[1749890776468,0.07047998,105180.0,105170.0,0.43382337]
[1749890776686,0.07047998,105180.0,105170.0,0.44496712]
[1749890776906,0.06097265,105180.0,105170.0,0.44496712]
[1749890777190,0.06097265,105180.0,105170.0,0.45165345]
[1749890777421,0.06097265,105180.0,105170.0,0.44496724]
[1749890777636,0.06097265,105180.0,105170.0,0.45165351]
[1749890777859,0.06097265,105180.0,105170.0,0.44496723]
[1749890778325,0.06097265,105180.0,105170.0,0.43382346]
[1749890778547,0.07047988,105180.0,105170.0,0.45165365]
[1749890778785,0.07047988,105180.0,105170.0,0.43382346]
[1749890778996,0.07047988,105180.0,105170.0,0.45165365]
[1749890779425,0.06097265,105180.0,105170.0,0.45165365]
[1749890779636,0.07047998,105180.0,105170.0,0.45165365]
[1749890780782,0.07047998,105180.0,105170.0,0.43382346]
[1749890781041,0.07047998,105180.0,105170.0,0.44496733]
[1749890781248,0.07047998,105180.0,105170.0,0.45165365]
[1749890781463,0.06097265,105180.0,105170.0,0.43382346]
[1749890781681,0.07047998,105180.0,105170.0,0.44496733]
[1749890781892,0.07047998,105180.0,105170.0,0.45165365]
[1749890782301,0.07047998,105180.0,105170.0,0.43382346]
[1749890782730,0.07047998,105180.0,105170.0,0.45165364]
[1749890783142,0.07047998,105180.0,105170.0,0.45165365]
[1749890783769,0.07047998,105180.0,105170.0,0.45165364]
[1749890784012,0.26063019,105180.0,105170.0,0.44214587]
[1749890784225,0.07047998,105180.0,105170.0,0.45165365]
[1749890784935,0.07047998,105180.0,105170.0,0.43382346]
[1749890785153,0.07047998,105180.0,105170.0,0.44496733]
[1749890785373,0.07047998,105180.0,105170.0,0.44496732]
[1749890785512,0.07047998,105180.0,105170.0,0.45165365]
[1749890785727,0.07047998,105180.0,105170.0,0.43382346]
[1749890785930,0.62510433,105180.0,105170.0,0.44496732]
[1749890786129,0.62510433,105180.0,105170.0,0.42713714]
[1749890786528,0.62510433,105180.0,105170.0,0.45164799]
[1749890786740,0.62510433,105180.0,105170.0,0.45164789]
[1749890786969,0.62510433,105180.0,105170.0,0.45164705]
[1749890787179,0.62510433,105180.0,105170.0,0.45164699]
[1749890787596,0.62510433,105180.0,105170.0,0.43382224]
[1749890787807,0.62510433,105180.0,105170.0,0.45164916]
[1749890788021,0.07047998,105180.0,105170.0,0.45164915]
[1749890788229,0.07047998,105180.0,105170.0,0.45164918]
[1749890788458,0.07047998,105180.0,105170.0,0.44496408]
[1749890788701,0.07047998,105180.0,105170.0,0.45164844]
[1749890788884,0.07047998,105180.0,105170.0,0.43382204]
[1749890789143,0.07047998,105180.0,105170.0,0.45164845]
[1749890789533,0.07047998,105180.0,105170.0,0.45164844]
[1749890789758,0.07047998,105180.0,105170.0,0.43382204]
[1749890790108,0.07047998,105180.0,105170.0,0.45164844]
[1749890790821,0.07047998,105180.0,105170.0,0.43382079]
[1749890790995,0.07047998,105180.0,105170.0,0.45164387]
[1749890792009,0.07047998,105180.0,105170.0,0.44496022]
[1749890792685,0.07047998,105180.0,105170.0,0.45164387]
[1749890792898,0.63461175,105180.0,105170.0,0.44496022]
[1749890793115,0.63461175,105180.0,105170.0,0.42713714]
[1749890793338,0.63461175,105180.0,105170.0,0.44496022]
[1749890793721,0.63461175,105180.0,105170.0,0.4338208]
[1749890793959,0.0799874,105180.0,105170.0,0.44496023]
[1749890794182,0.0799874,105180.0,105170.0,0.45164387]
[1749890794394,0.0799874,105180.0,105170.0,0.44496022]
[1749890794613,0.63461175,105180.0,105170.0,0.44496022]
[1749890794818,0.63461175,105180.0,105170.0,0.42713714]
[1749890795023,0.63461175,105180.0,105170.0,0.45164387]
[1749890795233,0.63461175,105180.0,105170.0,0.44496022]
[1749890795658,0.63461175,105180.0,105170.0,0.45164387]
[1749890795866,0.63461175,105180.0,105170.0,0.43382079]
[1749890796305,0.63461175,105180.0,105170.0,0.45164386]
[1749890796524,0.63461175,105180.0,105170.0,0.45164388]
[1749890796740,0.63461175,105180.0,105170.0,0.4516439]
[1749890797154,0.63461175,105180.0,105170.0,0.45164388]
[1749890797373,0.63461175,105180.0,105170.0,0.45164387]
[1749890798006,0.63461175,105180.0,105170.0,0.45164386]
[1749890798451,0.63461175,105180.0,105170.0,0.43382079]
[1749890798668,0.63461175,105180.0,105170.0,0.45164387]
[1749890798882,0.6346123,105180.0,105170.0,0.45164387]
[1749890799118,0.07048044,105180.0,105170.0,0.43382079]
[1749890799329,0.07048044,105180.0,105170.0,0.45164388]
[1749890799744,0.07048044,105180.0,105170.0,0.45164387]
[1749890800022,0.07048044,105180.0,105170.0,0.44496022]
[1749890800230,0.07048044,105180.0,105170.0,0.45164387]
[1749890800724,0.07048044,105180.0,105170.0,0.45164394]
[1749890800927,0.07048044,105180.0,105170.0,0.42713714]
[1749890801134,0.07048044,105180.0,105170.0,0.45164397]
[1749890801335,0.07048044,105180.0,105170.0,0.45164845]
[1749890802093,0.07048044,105180.0,105170.0,0.43382204]
[1749890802277,0.62510479,105180.0,105170.0,0.45164829]
[1749890802494,0.62510479,105180.0,105170.0,0.45164754]
[1749890802703,0.62510479,105180.0,105170.0,0.43382176]
[1749890803151,0.62510479,105180.0,105170.0,0.45164743]
[1749890803559,0.62510479,105180.0,105170.0,0.43382176]
[1749890803778,0.62510479,105180.0,105170.0,0.44496265]
[1749890803990,0.62510479,105180.0,105170.0,0.43382141]
[1749890804198,0.62510479,105180.0,105170.0,0.45164584]
[1749890804402,0.62510479,105180.0,105170.0,0.45164574]
[1749890804622,0.61559737,105180.0,105170.0,0.45164572]
[1749890804831,0.61559737,105180.0,105170.0,0.45164519]
[1749890805034,0.06097302,105180.0,105170.0,0.43382115]
[1749890805235,0.61559737,105180.0,105170.0,0.44496118]
[1749890805472,0.61559737,105180.0,105170.0,0.45164519]
[1749890805726,0.61559737,105180.0,105170.0,0.45164512]
[1749890805900,0.61559737,105180.0,105170.0,0.42713714]
[1749890806155,0.61559737,105180.0,105170.0,0.43374085]
[1749890806376,0.61559737,105180.0,105170.0,0.42705714]
[1749890806578,0.06097302,105180.0,105170.0,0.4448803]
[1749890807005,0.06097302,105180.0,105170.0,0.45156398]
[1749890807643,0.06097302,105180.0,105170.0,0.45156399]
[1749890807877,0.06097302,105180.0,105170.0,0.43374083]
[1749890808087,0.06097302,105180.0,105170.0,0.45156402]
[1749890808298,0.06097302,105180.0,105170.0,0.42705714]
[1749890808507,0.06097302,105180.0,105170.0,0.45156401]
[1749890808718,0.06097302,105180.0,105170.0,0.42705714]
[1749890808929,0.06097302,105180.0,105170.0,0.44488032]
[1749890809174,0.06097302,105180.0,105170.0,0.43374083]
[1749890809418,0.06097302,105180.0,105170.0,0.45156401]
[1749890809942,0.06097302,105180.0,105170.0,0.43374083]
[1749890810371,0.26063074,105180.0,105170.0,0.43374101]
[1749890810587,0.06097302,105180.0,105170.0,0.44324879]
[1749890810801,0.06097302,105180.0,105170.0,0.46107197]
[1749890811028,0.07048044,105180.0,105170.0,0.46107197]
[1749890811732,0.07048044,105180.0,105170.0,0.44324879]
[1749890811959,0.07048044,105180.0,105170.0,0.45438828]
[1749890812178,0.07048044,105180.0,105170.0,0.46107197]
[1749890812401,0.07048044,105180.0,105170.0,0.4365651]
[1749890812627,0.07048044,105180.0,105170.0,0.46107197]
[1749890812806,0.07048044,105180.0,105170.0,0.4365651]
[1749890813066,0.07048044,105180.0,105170.0,0.46107197]
[1749890813449,0.07048044,105180.0,105170.0,0.44324879]
[1749890813649,0.07048044,105180.0,105170.0,0.46107197]
[1749890813880,0.07048044,105180.0,105170.0,0.44324879]
[1749890814314,0.07048044,105180.0,105170.0,0.46107201]
[1749890814550,0.07048044,105180.0,105170.0,0.45438834]
[1749890814753,0.06097302,105180.0,105170.0,0.45438834]
[1749890814951,0.06097302,105180.0,105170.0,0.44324881]
[1749890815161,0.06097302,105180.0,105170.0,0.46107285]
[1749890815416,0.06097302,105180.0,105170.0,0.46107317]
[1749890815653,0.07048044,105180.0,105170.0,0.46107318]
[1749890816076,0.07048044,105180.0,105170.0,0.46107304]
[1749890816281,0.07048044,105180.0,105170.0,0.4365651]
[1749890816492,0.07048044,105180.0,105170.0,0.46107253]
[1749890816690,0.07048044,105180.0,105170.0,0.45438869]
[1749890816925,0.07048044,105180.0,105170.0,0.46107253]
[1749890817138,0.07048044,105180.0,105170.0,0.44324894]
[1749890817338,0.07048044,105180.0,105170.0,0.46107253]
[1749890817574,0.07048044,105180.0,105170.0,0.44324894]
[1749890817820,0.07048044,105180.0,105170.0,0.46107253]
[1749890818030,0.07048044,105180.0,105170.0,0.46107252]
[1749890818506,0.07048044,105180.0,105170.0,0.46107253]
[1749890818907,0.07048044,105180.0,105170.0,0.44324894]
[1749890819128,0.07048044,105180.0,105170.0,0.45438868]
[1749890819446,0.07048044,105180.0,105170.0,0.46107253]
[1749890819919,0.07048044,105180.0,105170.0,0.4365651]
[1749890820225,0.07048044,105180.0,105170.0,0.46107249]
[1749890820935,0.07048044,105180.0,105170.0,0.4365651]
[1749890822493,0.06097302,105180.0,105170.0,0.4365651]
[1749890822975,0.04195819,105180.0,105170.0,0.99118945]
[1749890823204,0.06097238,105180.0,105170.0,0.99118945]
[1749890823428,0.05146515,105180.0,105170.0,0.99118945]
[1749890823772,0.06097229,105180.0,105170.0,0.99118945]
[1749890823960,0.05146515,105180.0,105170.0,0.99118945]
[1749890826062,0.0324515,105180.0,105170.0,1.08743121]
[1749890826284,0.05146506,105180.0,105170.0,1.08743121]
[1749890826501,0.01901356,105180.0,105170.0,1.08743121]
[1749890826710,0.00950669,105180.0,105170.0,1.08743121]
[1749890827056,0.01901356,105180.0,105170.0,0.53280686]
[1749890827271,0.01901356,105180.0,105170.0,1.08743121]
[1749890827472,0.07768711,105190.0,105180.0,0.24977164]
[1749890827673,0.67183146,105190.0,105180.0,0.24977164]
[1749890828207,0.66232486,105190.0,105180.0,0.24977164]
[1749890828409,0.67183137,105190.0,105180.0,0.24977164]
[1749890828620,0.63231137,105190.0,105180.0,0.24977164]
[1749890828941,0.04916785,105190.0,105180.0,0.44216262]
[1749890829245,0.04916785,105190.0,105180.0,0.90063775]
[1749890829246,0.04916767,105190.0,105180.0,0.90063775]
[1749890829955,0.05867364,105190.0,105180.0,0.90063775]
[1749890830157,0.05867355,105190.0,105180.0,0.90263775]
[1749890830553,0.05867355,105190.0,105180.0,0.90463775]
[1749890830713,0.0681797,105190.0,105180.0,0.90463775]
[1749890830941,0.06817961,105190.0,105180.0,0.90463775]
[1749890831147,0.07768594,105190.0,105180.0,0.3500134]
[1749890831322,0.06817961,105190.0,105180.0,0.3500134]
[1749890831522,0.06817961,105190.0,105180.0,0.90463775]
[1749890832300,0.07768585,105190.0,105180.0,0.90463775]
[1749890832511,0.09100162,105190.0,105180.0,0.3500134]
[1749890832722,0.64181671,105190.0,105180.0,0.51352045]
[1749890833139,0.64181743,105190.0,105180.0,0.51352045]
[1749890833813,0.64181743,105190.0,105180.0,0.53802788]
[1749890834366,0.64181815,105190.0,105180.0,0.53802788]
[1749890834550,0.0776872,105190.0,105180.0,0.53802788]
[1749890834720,0.63231155,105190.0,105180.0,0.53799517]
[1749890835665,0.63231155,105190.0,105180.0,0.53799524]
[1749890836414,0.82244369,105190.0,105180.0,0.52848837]
[1749890836625,0.63231155,105190.0,105180.0,0.53799524]
[1749890838253,0.63231155,105190.0,105180.0,0.53799531]
[1749890838465,0.63231155,105190.0,105180.0,0.53799536]
[1749890838878,0.63231155,105190.0,105180.0,0.52019542]
[1749890839085,0.63231155,105190.0,105180.0,0.53799536]
[1749890839498,0.63231155,105190.0,105180.0,0.51352045]
[1749890839699,0.63231155,105190.0,105180.0,0.53799454]
[1749890839840,0.83195029,105190.0,105180.0,0.52848746]
[1749890840055,0.82244423,105190.0,105180.0,0.51898034]
[1749890840262,0.82244423,105190.0,105180.0,0.52181263]
[1749890840447,0.82244423,105190.0,105180.0,0.52848733]
[1749890840920,0.82244423,105190.0,105180.0,0.52848747]
[1749890841244,0.82244423,105190.0,105180.0,0.52181263]
[1749890841456,0.82244423,105190.0,105180.0,0.52848795]
[1749890841964,0.82244423,105190.0,105180.0,0.51068834]
[1749890842173,0.82244423,105190.0,105180.0,0.52848795]
[1749890842371,0.82244423,105190.0,105180.0,0.51068834]
[1749890842596,0.82244423,105190.0,105180.0,0.5218131]
[1749890842799,0.82244423,105190.0,105180.0,0.52848795]
[1749890843051,0.82244423,105190.0,105180.0,0.5218131]
[1749890843188,0.82244423,105190.0,105180.0,0.51068834]
[1749890843390,0.82244423,105190.0,105180.0,0.52848795]
[1749890843584,0.82244423,105190.0,105180.0,0.5218131]
[1749890843989,0.82244423,105190.0,105180.0,0.51068834]
[1749890844186,0.82244423,105190.0,105180.0,0.51898099]
[1749890844456,0.82244423,105190.0,105180.0,0.36498099]
[1749890844695,0.89007419,105190.0,105180.0,0.25923218]
[1749890844909,0.88056759,105190.0,105180.0,0.21353617]
[1749890845125,0.88056759,105190.0,105180.0,0.19573532]
[1749890845333,0.88056759,105190.0,105180.0,0.19573547]
[1749890845551,0.88056759,105190.0,105180.0,0.0351]
[1749890845778,0.88056759,105190.0,105180.0,0.18906]
[1749890846040,0.88056759,105190.0,105180.0,0.05957674]
[1749890846256,0.88056759,105190.0,105180.0,0.05957717]
[1749890846463,0.88056759,105190.0,105180.0,0.02847717]
[1749890846678,0.88056759,105190.0,105180.0,0.0284774]
[1749890846883,0.88056759,105190.0,105180.0,0.01067569]
[1749890847093,0.88056759,105190.0,105180.0,0.02847755]
[1749890847951,0.78441837,105190.0,105180.0,0.02847755]
[1749890848167,0.78441837,105190.0,105180.0,0.02180186]
[1749890848383,0.78441837,105190.0,105180.0,0.04347755]
[1749890848590,0.78441837,105190.0,105180.0,0.0356]
[1749890848776,0.78441837,105190.0,105180.0,0.06007755]
[1749890849601,0.78441837,105190.0,105180.0,0.04227569]
[1749890849816,0.78441837,105190.0,105180.0,0.06007755]
[1749890850014,0.78441837,105190.0,105180.0,0.06007812]
[1749890850237,0.78441837,105190.0,105180.0,0.04227585]
[1749890850429,0.78441837,105190.0,105180.0,0.0356]
[1749890850638,0.78441837,105190.0,105180.0,0.05340227]
[1749890850796,0.78441837,105190.0,105180.0,0.06007809]
[1749890851004,0.78441837,105190.0,105180.0,0.06007738]
[1749890851202,0.78441837,105190.0,105180.0,0.0356]
[1749890851401,0.78441837,105190.0,105180.0,0.06007553]
[1749890851601,0.78441837,105190.0,105180.0,0.25973235]
[1749890851805,0.78441837,105190.0,105180.0,0.25305756]
[1749890852011,0.78441837,105190.0,105180.0,0.25973169]
[1749890852216,0.78441837,105190.0,105180.0,0.25973105]
[1749890852555,0.78441837,105190.0,105180.0,0.25972798]
[1749890852888,0.78441837,105190.0,105180.0,0.24193196]
[1749890853111,0.78441837,105190.0,105180.0,0.25972717]
[1749890853327,0.78441837,105190.0,105180.0,0.25305398]